Cogmind - Beta 15 @@@ ROGUE MODE // 2025.05.11 @ 20:56:06 Player: TheTravelingGuy Result: Destroyed by RY-0CO(R) with Subdweller Machine Gun Performance ------------- Evolutions (0) 0 Regions Visited (3) 600 Robots Destroyed (18) 90 Value Destroyed (353) 353 Prototype IDs (12) 240 Alien Tech Used (0) 0 Bonus (0) 0 TOTAL SCORE: 1283 Bonus ------- None Cogmind --------- Core Integrity 0/250 Matter 297/300 Energy 250/250 System Corruption 0% Temperature Cool (0) Movement Core (250) Ox4 Location -10/Subcaves Parts ------- > --- POWER (1) -------- Ion Engine > --- PROPULSION (2) --- (None) > --- UTILITY (2) ------ Small Storage Unit Experimental Sensor Array > --- WEAPON (2) ------- Medium Laser > --- INVENTORY (8) ---- Arachnoskeleton Wheel Improved Terrain Scanner Seismic Detector Subdweller Beam Cannon Peak State ------------ > --- POWER ------------ Ion Engine > --- PROPULSION ------- Aluminum Leg Aluminum Leg > --- UTILITY ---------- Small Storage Unit Experimental Sensor Array > --- WEAPON ----------- Medium Laser Subdweller Machine Gun > --- INVENTORY -------- Arachnoskeleton Wheel Improved Terrain Scanner Seismic Detector Makeshift Thermal Plating Medium Laser [Rating: 19] Favorites ----------- Power Ion Engine Engine Ion Engine Propulsion Aluminum Leg Leg Aluminum Leg Wheel Wheel Utility Small Storage Unit Device Experimental Sensor Array Storage Small Storage Unit Weapon Light Assault Rifle Energy Gun Medium Laser Ballistic Gun Light Assault Rifle Special Weapon Enhanced Flamer Build | -11 -10 -10 -10 ------- Run | Yrd Mat Min Sub Slots Evolved . | . . . . Power . | . . . . Propulsion . | . . . . Utility . | . . . . Weapon . | . . . . Parts Attached 17 | 8 2 2 5 Power 2 | 1 . . 1 Engine 2 | 1 . . 1 Core . | . . . . Reactor . | . . . . Propulsion 3 | 3 . . . Treads . | . . . . Leg 2 | 2 . . . Wheel 1 | 1 . . . Hover . | . . . . Flight . | . . . . Utility 6 | 2 2 2 . Device 3 | 1 1 1 . Storage 3 | 1 1 1 . Processor . | . . . . Hackware . | . . . . Protection . | . . . . Artifact . | . . . . Weapon 6 | 2 . . 4 Energy Gun 2 | . . . 2 Energy Cannon . | . . . . Ballistic Gun 3 | 2 . . 1 Ballistic Cannon . | . . . . Launcher . | . . . . Special Weapon 1 | . . . 1 Impact Weapon . | . . . . Slashing Weapon . | . . . . Piercing Weapon . | . . . . Special Melee Weapon . | . . . . Unidentified Prototypes 1 | . . 1 . Parts Lost 6 | . . . 6 Power 1 | . . . 1 Propulsion 2 | . . . 2 Utility . | . . . . Weapon 3 | . . . 3 Highest Loss Streak 4 | . . . 4 To Critical Strikes . | . . . . Average Backups 5 | 1 3 5 6 Power . | . . 1 . Propulsion 1 | . 1 1 1 Utility 1 | . 1 1 2 Weapon 2 | . 1 2 2 Tool/Special . | . . . . Unused Backups 5 | . 1 . 4 Power . | . . . . Propulsion 1 | . . . 1 Utility 1 | . . . 1 Weapon 3 | . 1 . 2 Tool/Special . | . . . . Average Slot Usage (%) 99 | . 100 100 99 Engine 14 | . 14 14 14 Leg 27 | . 28 28 27 Device 14 | . 14 14 14 Storage 14 | . 14 14 14 Energy Gun 7 | . . . 11 Ballistic Gun 19 | . 28 28 14 Special Weapon 1 | . . . 1 Peak Build Rating 19 | 9 9 15 19 Average Rating 12 | 6 7 10 16 On Entrance 7 | . 9 7 15 Naked Turns . | . . . . Heaviest Build 49 | 14 49 14 17 Greatest Support 20 | 20 20 20 20 Greatest Overweight (x) 4 | 4 2 . 1 Average Overweight (x) . | . . . . Largest Inventory Capacity 25 | 8 20 25 8 Average Capacity 8 | 7 8 8 8 Most Carried 8 | 3 5 6 8 Average Carried 5 | 1 3 5 7 Final Capacity 8 | 8 8 8 8 Final Carried 7 | 3 5 6 7 Class Distribution -------------------- 100% | Mutant Dominant Class ---------------- Mutant | -10/Materials Mutant | -10/Mines Mutant | -10/Subcaves Resources | -11 -10 -10 -10 ----------- Run | Yrd Mat Min Sub Matter Collected 556 | 364 22 . 170 Remotely . | . . . . Salvage Created 544 | 228 49 . 267 Parts 41 | 18 6 . 17 Haulers Intercepted . | . . . . Recyclers Shooed 1 | 1 . . . Parts Field Recycled . | . . . . Retrieved Matter . | . . . . Parts Self-Destructed . | . . . . Prevented . | . . . . Kills | -11 -10 -10 -10 ------- Run | Yrd Mat Min Sub Combat Hostiles Destroyed 10 | . 3 . 7 Guns 10 | . 3 . 7 Classes Destroyed 5 | 3 1 . 1 Worker 2 | 2 . . . Tunneler 5 | 5 . . . Recycler 1 | 1 . . . Swarmer 3 | . 3 . . Subdweller 7 | . . . 7 Best Kill Streak 3 | 3 3 . 2 Combat Bots Only 3 | . 3 . 2 Max Kills in Single Turn 2 | 1 2 . 1 Gunslinging 1 | . 1 . . Exploded . | . . . . Melee . | . . . . Uniques/NPCs Destroyed . | . . . . Combat | -11 -10 -10 -10 -------- Run | Yrd Mat Min Sub Hostile Shots Fired 63 | . 6 . 57 Missed 14 | . 2 . 12 Hits 49 | . 4 . 45 Projectile 49 | . 4 . 45 Critical Strikes 1 | . . . 1 Damage Taken 1018 | . 30 . 988 Core 262 | . 6 . 256 Absorbed by Shields . | . . . . Core Remaining (%) 100 | 100 . . . Volleys Fired 69 | 21 3 . 45 Largest 2 | 2 2 . 2 Hottest 130 | 40 40 . 130 Shots Fired 136 | 42 6 . 88 Gun 134 | 42 6 . 86 Cannon . | . . . . Launcher . | . . . . Special 2 | . . . 2 Kinetic 103 | 42 6 . 55 Thermal 33 | . . . 33 Explosive . | . . . . Electromagnetic . | . . . . Robot Hit Streak 8 | 3 2 . 8 Robot Miss Streak 3 | 3 2 . 2 Penetration Max . | . . . . Secondary Targets 1 | . 1 . . Max Gunslinging Chain 1 | . 1 . . Shots Hit Robots 75 | 20 3 . 52 Core Hits 30 | 11 3 . 16 Critical Kills 3 | 2 . . 1 Critical Parts Destroyed . | . . . . Critical Strikes 4 | 2 . . 2 Burn 1 | . . . 1 Destroy 3 | 2 . . 1 Melee Attacks . | . . . . Impact . | . . . . Slashing . | . . . . Piercing . | . . . . Sneak Attacks . | . . . . Combat Hostiles . | . . . . Follow-up Attacks . | . . . . Damage Inflicted 923 | 248 29 . 646 Guns 913 | 248 29 . 636 Cannons . | . . . . Explosions . | . . . . Melee . | . . . . Ramming . | . . . . Kinetic 726 | 248 29 . 449 Thermal 197 | . . . 197 Explosive . | . . . . Electromagnetic . | . . . . Impact . | . . . . Slashing . | . . . . Piercing . | . . . . Highest Corruption . | . . . . Average Corruption . | . . . . Corruption Purged . | . . . . Corruption Blocked . | . . . . Overload Shots . | . . . . Overflow Damage . | . . . . Projectiles . | . . . . Explosions . | . . . . Melee . | . . . . Knockbacks . | . . . . Impact . | . . . . Kinetic . | . . . . Secondary . | . . . . Self-Inflicted Damage . | . . . . Shots . | . . . . Rammed . | . . . . Targets Rammed . | . . . . Kicked . | . . . . Crushed . | . . . . Highest Temperature 9 | . . . 9 Average Temperature 5 | . . . 5 Received Heat Transfer 165 | . . . 165 Siege Activations . | . . . . Martial Activations . | . . . . Shielding Activations . | . . . . Robots Disrupted . | . . . . Combat Hostiles . | . . . . Robots Corrupted . | . . . . Combat Hostiles . | . . . . Parts Fried . | . . . . Impact Corruptions . | . . . . Robots Melted . | . . . . Combat Hostiles . | . . . . Parts Melted 2 | . . . 2 Heat Transferred 709 | . . . 709 Parts Sabotaged . | . . . . Parts Stolen . | . . . . Parts Stripped . | . . . . Power Chain Reactions . | . . . . Alert | -11 -10 -10 -10 ------- Run | Yrd Mat Min Sub Maximum Alert Level . | . . . . Low Security (%) 100 | 100 100 100 . Level 1 . | . . . . Level 2 . | . . . . Level 3 . | . . . . Level 4 . | . . . . Level 5 . | . . . . High Security . | . . . . Max Security . | . . . . Peak Influence 74 | 10 74 13 . Initial 13 | . . 13 . Average 7 | 1 12 1 . Influence Increases 131 | 40 91 . . Destroy 0b10 Robot/C 60 | . 60 . . Destroy 0b10 Robot/NC 40 | 40 . . . Destroy Leader 10 | . 10 . . Successful Hack 21 | . 21 . . Influence Decreases 131 | 40 55 36 . Entered New Map 23 | . . 23 . Time Decay 108 | 40 55 13 . Squads Dispatched 1 | . 1 . . Investigation 1 | . 1 . . Extermination . | . . . . Reinforcement . | . . . . Assault . | . . . . Garrison . | . . . . Intercept . | . . . . Searches Triggered . | . . . . Construction Impeded . | . . . . Haulers Reinforced . | . . . . Active Scanning Responses . | . . . . Cargo Convoy Interrupts . | . . . . Stealth | -11 -10 -10 -10 --------- Run | Yrd Mat Min Sub Distress Signals . | . . . . Communications Jammed . | . . . . Distress Signals . | . . . . Times Spotted 12 | . 4 . 8 Peak Tracking Total 3 | . 3 . 2 Tactical Retreats . | . . . . Traps | -11 -10 -10 -10 ------- Run | Yrd Mat Min Sub Traps Triggered . | . . . . Indirectly . | . . . . Trap Hack Attempts . | . . . . Triggered . | . . . . Disarmed . | . . . . Reprogrammed . | . . . . Reused . | . . . . Traps Extracted . | . . . . Installed . | . . . . Triggered . | . . . . Machines | -11 -10 -10 -10 ---------- Run | Yrd Mat Min Sub Machines Disabled 1 | . . . 1 Max in Single Turn 1 | . . . 1 Machines Repaired . | . . . . Machines Dismantled . | . . . . Machines Sabotaged . | . . . . Overloaded Fab Kills . | . . . . Hacking | -11 -10 -10 -10 --------- Run | Yrd Mat Min Sub Machines Accessed 5 | . 3 . 2 Terminals 3 | . 3 . . Fabricators . | . . . . Repair Stations . | . . . . Recycling Units . | . . . . Scanalyzers . | . . . . Garrison Access . | . . . . Total Hacks 23 | . 10 . 13 Successful 19 | . 6 . 13 Failed 4 | . 4 . . Catastrophic 1 | . 1 . . Database Lockouts . | . . . . Manual 10 | . 10 . . Terminals 10 | . 10 . . Fabricators . | . . . . Repair Stations . | . . . . Recycling Units . | . . . . Scanalyzers . | . . . . Garrison Access . | . . . . Terminal Hacks 16 | . 3 . 13 Record 12 | . . . 12 Level Access Points 1 | . 1 . . Recall Investigation 1 | . 1 . . Zone Layout 1 | . 1 . . Proto ID Catalog 1 | . . . 1 Fabricator Hacks . | . . . . Repair Station Hacks . | . . . . Recycling Unit Hacks . | . . . . Scanalyzer . | . . . . Garrison Access Hacks . | . . . . Unauthorized Hacks 3 | . 3 . . Terminals 3 | . 3 . . Botnet 3 | . 3 . . Fabricators . | . . . . Repair Stations . | . . . . Recycling Units . | . . . . Scanalyzers . | . . . . Garrison Access . | . . . . Data Cores Recovered . | . . . . Used . | . . . . Hacking Detections 2 | . 2 . . Full Trace Events 1 | . 1 . . Feedback Events . | . . . . Feedback Blocked . | . . . . Robot Schematics Acquired . | . . . . Robots Built . | . . . . Authchips . | . . . . Time . | . . . . Total Robot Build Rating . | . . . . Part Schematics Acquired . | . . . . Parts Built . | . . . . Authchips . | . . . . Time . | . . . . Total Part Build Rating . | . . . . Parts Repaired . | . . . . Time . | . . . . Parts Recycled . | . . . . Recycled Matter . | . . . . Retrieved Matter . | . . . . Retrieved Components . | . . . . Parts Scanalyzed . | . . . . Part Schematics Acquired . | . . . . Parts Damaged . | . . . . Bothacking | -11 -10 -10 -10 ------------ Run | Yrd Mat Min Sub Used RIF Installer . | . . . . Robots Hacked . | . . . . Non-combat . | . . . . Combat . | . . . . Robot Hacks Applied . | . . . . Relay Couplers Released . | . . . . Fabnet Peak Effective % . | . . . . Robots Rewired . | . . . . Allies Hacked . | . . . . Hacks Repelled . | . . . . Allies | -11 -10 -10 -10 -------- Run | Yrd Mat Min Sub Total Allies . | . . . . Largest Group . | . . . . Highest-Rated Group . | . . . . Highest-Rated Ally . | . . . . Total Orders . | . . . . Ally Attacks . | . . . . Total Damage . | . . . . Kills . | . . . . Allies Corrupted . | . . . . Allies Melted . | . . . . Intel | -11 -10 -10 -10 ------- Run | Yrd Mat Min Sub Active Infowar (turns) 2011 | 115 483 173 1240 Sensors 1325 | . . 85 1240 Terrain 150 | 115 35 . . Seismic 536 | . 448 88 . Robot Analysis Total . | . . . . Derelict Logs Recovered 2 | . . . 2 Drone Launches . | . . . . Drone Recoveries . | . . . . Exploration | -11 -10 -10 -10 ------------- Run | Yrd Mat Min Sub Turns Passed 2181 | 285 483 173 1240 Spaces Moved 1316 | 172 146 104 894 Core 16 | 16 . . . Treads . | . . . . Legs 1300 | 156 146 104 894 Wheels . | . . . . Hover . | . . . . Flight . | . . . . Fastest Speed 50 | 50 120 120 120 Average Speed 120 | 122 120 120 120 Slowest Speed 260 | 250 260 120 190 Overloaded Moves . | . . . . Propulsion Burnouts . | . . . . Robots Hopped . | . . . . Potential Cave-ins . | . . . . Cave-ins Triggered . | . . . . Exploration Rate (%) 22 | 8 27 24 31 Regions Visited 3 Branch Regions 2 Pre-discovered Areas 1 | . . . 1 Known Exits Taken . | . . . . Unknown Exits Taken 3 | 1 1 1 . Scrap Searched 5 | . . . 5 Spaces Dug . | . . . . Terrain Destroyed . | . . . . Melee . | . . . . Projectile . | . . . . AOE . | . . . . Terrain Rammed . | . . . . Walls Destroyed . | . . . . Machines Disabled . | . . . . Actions | -11 -10 -10 -10 --------- Run | Yrd Mat Min Sub Total 1778 | 204 446 151 977 Wait 352 | . 290 43 19 Move 1313 | 171 145 103 894 Hop . | . . . . Pick Up 15 | 3 3 1 8 Fast Attach 7 | 7 . . . Attach 4 | 1 . . 3 Detach 1 | 1 . . . Swap 8 | . 3 3 2 Drop 9 | . 2 1 6 Fire 69 | 21 3 . 45 Melee . | . . . . Ram . | . . . . Kick . | . . . . Crush . | . . . . Escape Stasis . | . . . . Rewire . | . . . . Trap . | . . . . Miscellaneous . | . . . . Route ------- -11/Scrapyard -10/Materials (discovered 4 exits: Mat x3 / [*Min]) -10/Mines -10/Subcaves History --------- Turn | Location | Event 21 | -11/Scrapyard | Discovered new exit (range 15) 286 | -11/Scrapyard | Entered Materials 306 | -10/Materials | Build established: Mutant 729 | -10/Materials | Discovered new exit (range 14) 745 | -10/Materials | Identified exit to Materials 769 | -10/Materials | Entered Mines 849 | -10/Mines | Found a damaged Exp. Sensor Array with a note attached 856 | -10/Mines | Found Prototype Device 857 | -10/Mines | Identified Exp. Sensor Array 929 | -10/Mines | Discovered new exit (range 10) 942 | -10/Mines | Entered Subcaves 943 | -10/Subcaves | Approached by a straggling Scientist 945 | -10/Subcaves | Learned location of Recycling (-8) 1691 | -10/Subcaves | Visited Clippyterm 1694 | -10/Subcaves | Learned 40 Factory zone layouts 1710 | -10/Subcaves | Core integrity fell below 50% 1742 | -10/Subcaves | A swath of the cavern ceiling suddenly collapsed 1752 | -10/Subcaves | Disturbed a concealed Subdweller 1995 | -10/Subcaves | Visited 4L-MR0's lab 2051 | -10/Subcaves | Found Arachnoskeleton 2165 | -10/Subcaves | Core integrity fell below 20% 2182 | -10/Subcaves | Destroyed by RY-0CO(R) with Subdweller Machine Gun Last Messages --------------- 02049_ Dropped Enh. Flamer. 02050_ Dropped Lgt. Assault Rifle. 02050_ Dropped Sub. Beam Cannon. 02051_ Acquired Arachnoskeleton. 02052_ Dropped Mak. Thermal Plating. 02053_ Acquired Enh. Flamer. 02054_ Dropped Enh. Flamer. 02056_ Acquired Sub. Beam Cannon. AX-IB3(c): "We're getting close, I can feel it." 02071_ Acquired 8 matter. 02103_ Subatomizers dissect the Sub. Monowheel. AX-IB3(c): "I think it's somewhere east of here" 02115_ Subatomizers dissect the Sub. Monowheel. 02130_ Subatomizers dissect the Sub. Monowheel, destroying it. 02161_ Med. Laser destroyed. AX-IB3(c): "I think it's somewhere east of here" 02166_ Aluminum Leg destroyed. 02169_ 75-29V(R) destroyed. 02176_ Aluminum Leg destroyed. 02180_ Sub. Machine Gun destroyed. Map ----- +----------------------------------------------------+ | ?????????????????????????????????????????????????? | | ?????????????????????????????????????????????????? | | ?????????????????????????????????????????????????? | | ?????????????????????????????????????????????????? | | ?????????????????????????????????????????????????? | | ?????????????????????????????????????????????????? | | ?????????????????????????????????????????????????? | | ?????????????????????????????????????????????????? | | ?????????????????????????????????????????????????? | | ?????????????????????????????????????????????????? | | ?????????????????????????????????????????????????? | | ?????????????????????????????????????????????????? | | ?????????????????????????????????????????????????? | | ?????????????????????????????????????????????????? | | ?????????????????????????????????????????????????? | | ?????????????????????????????????????????????????? | | ?????????????????????????????????????????????????? | | ???????????????????????"""" ?????????????????????? | | ?????????????????? ??#"""#?????????????????????? | | ??????????????????# ??#"""#?????????????????????? | | ?????????????????? ?""""#????##???????????????? | | ?????????????????? #?#!%!#???""#???????????????? | | ?????????????????## ## R ??? ##??????????????? | | ?????????????????# # ;?? #??????????????? | | ?????????????????? ### ### #??????????????? | | ?????????????????## ## @ #???????????????? | | ?????????????????# ### #???????????????? | | ??????????????????# # ## #???????????????? | | ?????????????????## ## #???????????????? | | ????????????????## #??????????????# | | ???????????????## ## #?????????????# | | ??????????????## #?? #?????????????# | | ?????????????## #??? #####?????????????# | | ????????###### #?????####??????????????# | | ????????# " """##?????# ##?????????????# | | ????????# """"""""#?????# ##????????????# | | ????????# " """ #???### ##???????????? | | ????????# """" ##??## ##?????????## | | ???????## " ! ##???#" #????????## | | ???????# ### &!##????# #??????### | | ???????# ##?## ####### #??????# | | ???????# ##??#"& | ### ##??????## | | ???????## #?##" ## ##???????### | | ???????## ### ########??# | | ??????## ### [ & ## ## ##?# | | ??????# #?# &% #### | | ?????## ##?# ! ## | | ?????# ##### ########## | | ?????# """"########????????## "### | | ?????## " ""#???????????????# ##?## | +----------------------------------------------------+ Best States ------------- Heat Dissipation 25 Energy Generation 10 Energy Capacity 250 Matter Stores 300 Matter Capacity 300 Sight Range 16 Robot Scan Range 20 Terrain Scan Range 16 Terrain Scan Density 10 Evasion (%) 55 Item Schematics ----------------- None Robot Schematics ------------------ None Fabricated ------------ Nothing Repaired ---------- Nothing Alien Tech Used ----------------- None Achievements -------------- None Challenges ------------ None Game ------ Seed DerelictGuidedWings Manual? 0 Play Time 00:14:33 Cumulative 21.7 hours Start 2025.05.11 @ 19:33:35 End 2025.05.11 @ 20:56:06 Sessions 1 Manual Loads 0 Difficulty Rogue Special Mode None Game No. 39 Rogue 38 Adventurer 1 Explorer 0 Win Type - Total 0 Types 0/0/0/0/0/0/0/0/0/0 Lore% 16 Gallery% 21 Achievement% 22 Wizard Run 0 Options --------- Layout 0 ASCII 0 Keyboard 0 Movement Mouse Keybinds 0 Fullscreen 2 Font 18/SmallcapsGlow Map View 76x50 Zoom Use 0% Tactical HUD 1 Map Filters NONE Filters NONE Steam 1 RUN: 650d217d-0b3a-4df7-a933-65944e8b8481